[Event "Titled Tuesday Blitz February 21 Late 2023"]
[White "Melian, Juan Sebastian"]
[Black "Gurevich, Ilya"]
[WhiteFideId "3706575"]
[BlackFideId "2000628"]
[WhiteElo "2293"]
[BlackElo "2586"]
[Result "1-0"]
[Round "08"]
[TimeControl "180+2"]
[Date "2023.02.21"]
[WhiteClock "0:00:07"]
[BlackClock "0:00:02"]

1. d4 {[%clk 0:02:48]}  Nf6 {[%clk 0:02:59]} 2. c4 {[%clk 0:02:48]}  g6 {[%clk 0:03:00]} 3. Nc3 {[%clk 0:02:45]}  Bg7 {[%clk 0:03:00]} 4. e4 {[%clk 0:02:42]}  d6 {[%clk 0:03:00]} 5. f3 {[%clk 0:02:41]}  O-O {[%clk 0:03:01]} 6. Be3 {[%clk 0:02:41]}  c5 {[%clk 0:03:01]} 7. Nge2 {[%clk 0:02:40]}  cxd4 {[%clk 0:03:01]} 8. Nxd4 {[%clk 0:02:41]}  Nc6 {[%clk 0:03:02]} 9. Qd2 {[%clk 0:02:41]}  Bd7 {[%clk 0:03:02]} 10. Be2 {[%clk 0:02:41]}  Nxd4 {[%clk 0:03:02]} 11. Bxd4 {[%clk 0:02:42]}  Bc6 {[%clk 0:03:03]} 12. O-O {[%clk 0:02:42]}  Nd7 {[%clk 0:03:03]} 13. b4 {[%clk 0:02:38]}  Bxd4+ {[%clk 0:02:57]} 14. Qxd4 {[%clk 0:02:39]}  Qb6 {[%clk 0:02:57]} 15. Qxb6 {[%clk 0:02:34]}  Nxb6 {[%clk 0:02:58]} 16. Rab1 {[%clk 0:02:18]}  Rac8 {[%clk 0:02:18]} 17. Rfc1 {[%clk 0:02:11]}  Rc7 {[%clk 0:02:02]} 18. Nd1 {[%clk 0:01:47]}  Rfc8 {[%clk 0:01:54]} 19. Ne3 {[%clk 0:01:24]}  Bd7 {[%clk 0:01:51]} 20. Rc2 {[%clk 0:01:13]}  Kf8 {[%clk 0:01:21]} 21. Kf2 {[%clk 0:01:13]}  Ba4 {[%clk 0:01:03]} 22. Rc3 {[%clk 0:01:05]}  e6 {[%clk 0:00:56]} 23. b5 {[%clk 0:00:53]}  d5 {[%clk 0:00:51]} 24. exd5 {[%clk 0:00:32]}  exd5 {[%clk 0:00:51]} 25. Ra3 {[%clk 0:00:32]}  dxc4 {[%clk 0:00:48]} 26. Rc3 {[%clk 0:00:11]}  Rc5 {[%clk 0:00:45]} 27. Ra3 {[%clk 0:00:07]}  Rxb5 {[%clk 0:00:38]} 28. Rxb5 {[%clk 0:00:06]}  Bxb5 {[%clk 0:00:39]} 29. Rxa7 {[%clk 0:00:06]}  Ba6 {[%clk 0:00:40]} 30. a4 {[%clk 0:00:04]}  Rb8 {[%clk 0:00:39]} 31. a5 {[%clk 0:00:04]}  Nc8 {[%clk 0:00:40]} 32. Rxa6 {[%clk 0:00:03]}  bxa6 {[%clk 0:00:40]} 33. Bxc4 {[%clk 0:00:03]}  Nd6 {[%clk 0:00:26]} 34. Bxa6 {[%clk 0:00:03]}  Ra8 {[%clk 0:00:25]} 35. Bd3 {[%clk 0:00:04]}  Rxa5 {[%clk 0:00:26]} 36. h4 {[%clk 0:00:05]}  f5 {[%clk 0:00:25]} 37. Bf1 {[%clk 0:00:02]}  h5 {[%clk 0:00:22]} 38. Kg3 {[%clk 0:00:03]}  Ra4 {[%clk 0:00:21]} 39. Nd5 {[%clk 0:00:03]}  Kf7 {[%clk 0:00:20]} 40. Nf4 {[%clk 0:00:03]}  Kf6 {[%clk 0:00:17]} 41. Be2 {[%clk 0:00:02]}  Ra5 {[%clk 0:00:13]} 42. Bd3 {[%clk 0:00:02]}  Nf7 {[%clk 0:00:13]} 43. Be2 {[%clk 0:00:02]}  Ne5 {[%clk 0:00:13]} 44. Bf1 {[%clk 0:00:03]}  Nc6 {[%clk 0:00:11]} 45. Bc4 {[%clk 0:00:03]}  Nd4 {[%clk 0:00:10]} 46. Nd5+ {[%clk 0:00:02]}  Kg7 {[%clk 0:00:08]} 47. Nf4 {[%clk 0:00:03]}  Ra4 {[%clk 0:00:06]} 48. Bd5 {[%clk 0:00:02]}  Kf6 {[%clk 0:00:04]} 49. Bb7 {[%clk 0:00:02]}  Ne6 {[%clk 0:00:03]} 50. Nd5+ {[%clk 0:00:02]}  Kg7 {[%clk 0:00:03]} 51. Bc8 {[%clk 0:00:02]}  Nf8 {[%clk 0:00:02]} 52. Nf4 {[%clk 0:00:02]}  Ra8 {[%clk 0:00:02]} 53. Bb7 {[%clk 0:00:03]}  Rb8 {[%clk 0:00:02]} 54. Bd5 {[%clk 0:00:03]}  Kf6 {[%clk 0:00:02]} 55. Bc4 {[%clk 0:00:04]}  Rb4 {[%clk 0:00:02]} 56. Nd5+ {[%clk 0:00:04]}  Ke5 {[%clk 0:00:02]} 57. Nxb4 {[%clk 0:00:05]}  Kd4 {[%clk 0:00:02]} 58. Bf7 {[%clk 0:00:05]}  Ke3 {[%clk 0:00:01]} 59. Nd5+ {[%clk 0:00:05]}  Kd4 {[%clk 0:00:01]} 60. Ne7 {[%clk 0:00:06]}  Ke5 {[%clk 0:00:02]} 61. Nxg6+ {[%clk 0:00:07]} 1-0


[Site "https://www.chess.com"]

[Event "Titled Tuesday Blitz February 21 Late 2023"]
[White "Prydun, Andriy"]
[Black "Defend, Balint"]
[WhiteFideId "14145898"]
[BlackFideId "17004853"]
[WhiteElo "2134"]
[BlackElo "1673"]
[Result "1-0"]
[Round "08"]
[TimeControl "180+2"]
[Date "2023.02.21"]
[WhiteClock "0:00:30"]
[BlackClock "0:00:24"]

1. d4 {[%clk 0:03:00]}  Nf6 {[%clk 0:02:54]} 2. c4 {[%clk 0:03:00]}  b5 {[%clk 0:02:49]} 3. cxb5 {[%clk 0:02:58]}  a6 {[%clk 0:02:49]} 4. b6 {[%clk 0:02:57]}  cxb6 {[%clk 0:02:48]} 5. Nc3 {[%clk 0:02:57]}  Bb7 {[%clk 0:02:49]} 6. Bg5 {[%clk 0:02:57]}  Ne4 {[%clk 0:02:41]} 7. Nxe4 {[%clk 0:02:54]}  Bxe4 {[%clk 0:02:41]} 8. e3 {[%clk 0:02:49]}  b5 {[%clk 0:02:38]} 9. Nf3 {[%clk 0:02:45]}  Qa5+ {[%clk 0:02:37]} 10. Qd2 {[%clk 0:02:38]}  Qxd2+ {[%clk 0:02:37]} 11. Nxd2 {[%clk 0:02:37]}  Bb7 {[%clk 0:02:37]} 12. Nb3 {[%clk 0:02:28]}  e6 {[%clk 0:02:30]} 13. a3 {[%clk 0:02:18]}  Nc6 {[%clk 0:02:29]} 14. Rc1 {[%clk 0:02:14]}  d5 {[%clk 0:02:25]} 15. Bd3 {[%clk 0:02:07]}  Bd6 {[%clk 0:02:25]} 16. Nc5 {[%clk 0:02:06]}  Bxc5 {[%clk 0:02:25]} 17. Rxc5 {[%clk 0:02:07]}  f6 {[%clk 0:02:20]} 18. Bh4 {[%clk 0:02:04]}  Kd7 {[%clk 0:02:20]} 19. f4 {[%clk 0:01:59]}  Rac8 {[%clk 0:02:17]} 20. f5 {[%clk 0:01:58]}  e5 {[%clk 0:01:46]} 21. Rxd5+ {[%clk 0:01:56]}  Ke7 {[%clk 0:01:47]} 22. O-O {[%clk 0:01:34]}  Nxd4 {[%clk 0:01:32]} 23. Rxe5+ {[%clk 0:01:34]}  Kd6 {[%clk 0:01:19]} 24. exd4 {[%clk 0:01:33]}  fxe5 {[%clk 0:01:19]} 25. f6 {[%clk 0:01:33]}  e4 {[%clk 0:00:47]} 26. fxg7 {[%clk 0:01:28]}  Rhg8 {[%clk 0:00:45]} 27. Rf6+ {[%clk 0:01:17]}  Kd5 {[%clk 0:00:42]} 28. Rf5+ {[%clk 0:01:14]}  Kxd4 {[%clk 0:00:38]} 29. Bf1 {[%clk 0:01:14]}  e3 {[%clk 0:00:30]} 30. Bf6+ {[%clk 0:01:13]}  Ke4 {[%clk 0:00:25]} 31. Re5+ {[%clk 0:00:51]}  Kf4 {[%clk 0:00:25]} 32. g3+ {[%clk 0:00:48]}  Kg4 {[%clk 0:00:23]} 33. Be2+ {[%clk 0:00:30]}  Bf3 {[%clk 0:00:24]} 34. Rg5+ {[%clk 0:00:30]}  Kh3 {[%clk 0:00:24]} 35. Bf1+ {[%clk 0:00:30]} 1-0


[Site "https://www.chess.com"]

[Event "Titled Tuesday Blitz February 21 Late 2023"]
[White "Remolar Gallen, Jose"]
[Black "Coelho, Ramyres Santana"]
[WhiteFideId "2215187"]
[BlackFideId "2120690"]
[WhiteElo "2285"]
[BlackElo "1981"]
[Result "0-1"]
[Round "08"]
[TimeControl "180+2"]
[Date "2023.02.21"]
[WhiteClock "0:00:50"]
[BlackClock "0:02:08"]

1. e4 {[%clk 0:02:56]}  c5 {[%clk 0:02:59]} 2. Nf3 {[%clk 0:02:56]}  d6 {[%clk 0:02:59]} 3. d4 {[%clk 0:02:56]}  cxd4 {[%clk 0:03:00]} 4. Nxd4 {[%clk 0:02:57]}  Nf6 {[%clk 0:03:00]} 5. Nc3 {[%clk 0:02:57]}  a6 {[%clk 0:03:01]} 6. Bc4 {[%clk 0:02:55]}  e6 {[%clk 0:03:01]} 7. Bb3 {[%clk 0:02:53]}  Qc7 {[%clk 0:03:01]} 8. Be3 {[%clk 0:02:48]}  Be7 {[%clk 0:03:01]} 9. f3 {[%clk 0:02:41]}  O-O {[%clk 0:03:00]} 10. Qd2 {[%clk 0:02:40]}  Nbd7 {[%clk 0:03:01]} 11. g4 {[%clk 0:02:39]}  Ne5 {[%clk 0:03:00]} 12. O-O-O {[%clk 0:02:30]}  Nc4 {[%clk 0:02:58]} 13. Bxc4 {[%clk 0:02:29]}  Qxc4 {[%clk 0:02:59]} 14. g5 {[%clk 0:02:26]}  Nd7 {[%clk 0:02:57]} 15. h4 {[%clk 0:02:27]}  b5 {[%clk 0:02:56]} 16. h5 {[%clk 0:02:25]}  b4 {[%clk 0:02:55]} 17. Nce2 {[%clk 0:02:24]}  Qxa2 {[%clk 0:02:53]} 18. Qxb4 {[%clk 0:02:12]}  Rb8 {[%clk 0:02:35]} 19. Qa3 {[%clk 0:01:53]}  Qc4 {[%clk 0:02:33]} 20. g6 {[%clk 0:01:44]}  Ne5 {[%clk 0:02:28]} 21. h6 {[%clk 0:01:29]}  fxg6 {[%clk 0:02:22]} 22. hxg7 {[%clk 0:01:29]}  Rf7 {[%clk 0:02:21]} 23. Nf4 {[%clk 0:01:04]}  d5 {[%clk 0:02:16]} 24. Qc3 {[%clk 0:00:58]}  Qxc3 {[%clk 0:02:16]} 25. bxc3 {[%clk 0:00:58]}  dxe4 {[%clk 0:02:12]} 26. Ndxe6 {[%clk 0:00:52]}  Nc4 {[%clk 0:02:09]} 27. Bd4 {[%clk 0:00:50]}  Ba3# {[%clk 0:02:08]} 0-1


[Site "https://www.chess.com"]

[Event "Titled Tuesday Blitz February 21 Late 2023"]
[White "Deng, Henry"]
[Black "Buganca, Luiz Henrique Da Silva"]
[WhiteFideId "30965454"]
[BlackFideId "2182289"]
[WhiteElo "2168"]
[BlackElo "1920"]
[Result "0-1"]
[Round "08"]
[TimeControl "180+2"]
[Date "2023.02.21"]
[WhiteClock "0:00:30"]
[BlackClock "0:00:18"]

1. e4 {[%clk 0:03:00]}  c6 {[%clk 0:02:57]} 2. d4 {[%clk 0:03:00]}  d5 {[%clk 0:02:58]} 3. Nd2 {[%clk 0:03:01]}  dxe4 {[%clk 0:02:58]} 4. Nxe4 {[%clk 0:03:01]}  Nd7 {[%clk 0:02:59]} 5. Nf3 {[%clk 0:03:00]}  Ngf6 {[%clk 0:02:59]} 6. Bd3 {[%clk 0:03:00]}  Nxe4 {[%clk 0:02:59]} 7. Bxe4 {[%clk 0:03:00]}  Nf6 {[%clk 0:03:00]} 8. Bd3 {[%clk 0:03:01]}  Bg4 {[%clk 0:03:00]} 9. c3 {[%clk 0:03:01]}  e6 {[%clk 0:03:00]} 10. h3 {[%clk 0:03:01]}  Bh5 {[%clk 0:03:01]} 11. Bg5 {[%clk 0:02:58]}  Be7 {[%clk 0:02:59]} 12. O-O {[%clk 0:02:57]}  O-O {[%clk 0:02:58]} 13. g4 {[%clk 0:02:54]}  Bg6 {[%clk 0:02:57]} 14. Ne5 {[%clk 0:02:52]}  Nd5 {[%clk 0:02:52]} 15. Bxe7 {[%clk 0:02:52]}  Qxe7 {[%clk 0:02:53]} 16. Bxg6 {[%clk 0:02:48]}  hxg6 {[%clk 0:02:53]} 17. Qf3 {[%clk 0:02:46]}  Qf6 {[%clk 0:02:49]} 18. Qg3 {[%clk 0:02:40]}  Nf4 {[%clk 0:02:38]} 19. Kh2 {[%clk 0:02:38]}  Rfd8 {[%clk 0:02:38]} 20. g5 {[%clk 0:02:35]}  Qf5 {[%clk 0:02:37]} 21. Rae1 {[%clk 0:02:27]}  c5 {[%clk 0:02:26]} 22. Nf3 {[%clk 0:02:03]}  Nd3 {[%clk 0:02:14]} 23. Re2 {[%clk 0:02:03]}  b6 {[%clk 0:02:05]} 24. Ne5 {[%clk 0:02:02]}  Nf4 {[%clk 0:02:02]} 25. Rd2 {[%clk 0:01:54]}  cxd4 {[%clk 0:01:59]} 26. cxd4 {[%clk 0:01:55]}  Rac8 {[%clk 0:01:56]} 27. Re1 {[%clk 0:01:49]}  Nh5 {[%clk 0:01:37]} 28. Qg4 {[%clk 0:01:41]}  Qf4+ {[%clk 0:01:36]} 29. Qxf4 {[%clk 0:01:40]}  Nxf4 {[%clk 0:01:37]} 30. Kg3 {[%clk 0:01:40]}  Nd5 {[%clk 0:01:30]} 31. h4 {[%clk 0:01:39]}  Nb4 {[%clk 0:01:21]} 32. a3 {[%clk 0:01:36]}  Nc6 {[%clk 0:01:16]} 33. Red1 {[%clk 0:01:30]}  Ne7 {[%clk 0:01:16]} 34. Kg4 {[%clk 0:01:26]}  Rd5 {[%clk 0:01:13]} 35. Rh1 {[%clk 0:01:13]}  Nf5 {[%clk 0:00:57]} 36. f4 {[%clk 0:01:11]}  Rcd8 {[%clk 0:00:49]} 37. h5 {[%clk 0:01:09]}  gxh5+ {[%clk 0:00:48]} 38. Rxh5 {[%clk 0:01:09]}  f6 {[%clk 0:00:46]} 39. gxf6 {[%clk 0:01:03]}  gxf6 {[%clk 0:00:47]} 40. Nf3 {[%clk 0:01:02]}  Kg7 {[%clk 0:00:34]} 41. Rdh2 {[%clk 0:00:57]}  Ne3+ {[%clk 0:00:34]} 42. Kg3 {[%clk 0:00:57]}  Nf1+ {[%clk 0:00:34]} 43. Kf2 {[%clk 0:00:53]}  Nxh2 {[%clk 0:00:34]} 44. Rxh2 {[%clk 0:00:54]}  Rh8 {[%clk 0:00:26]} 45. Rg2+ {[%clk 0:00:53]}  Kf7 {[%clk 0:00:26]} 46. Ke3 {[%clk 0:00:53]}  Rb5 {[%clk 0:00:25]} 47. Rc2 {[%clk 0:00:53]}  Rb3+ {[%clk 0:00:25]} 48. Kf2 {[%clk 0:00:48]}  Rh3 {[%clk 0:00:25]} 49. Ne1 {[%clk 0:00:48]}  Rh2+ {[%clk 0:00:25]} 50. Ng2 {[%clk 0:00:48]}  Kg6 {[%clk 0:00:23]} 51. Kg1 {[%clk 0:00:48]}  Rh7 {[%clk 0:00:21]} 52. Kf2 {[%clk 0:00:47]}  Kf5 {[%clk 0:00:20]} 53. Re2 {[%clk 0:00:47]}  Rhh3 {[%clk 0:00:18]} 54. Kg1 {[%clk 0:00:43]}  Rhg3 {[%clk 0:00:18]} 55. Kh2 {[%clk 0:00:41]}  Rh3+ {[%clk 0:00:18]} 56. Kg1 {[%clk 0:00:41]}  Rbg3 {[%clk 0:00:19]} 57. Kf2 {[%clk 0:00:38]}  Rg4 {[%clk 0:00:16]} 58. Kg1 {[%clk 0:00:33]}  Rhg3 {[%clk 0:00:15]} 59. Kf1 {[%clk 0:00:29]}  Rxg2 {[%clk 0:00:16]} 60. Rxg2 {[%clk 0:00:28]}  Rxg2 {[%clk 0:00:17]} 61. Kxg2 {[%clk 0:00:29]}  Kxf4 {[%clk 0:00:18]} 62. d5 {[%clk 0:00:29]}  exd5 {[%clk 0:00:17]} 63. Kf2 {[%clk 0:00:30]}  d4 {[%clk 0:00:18]} 0-1


[Site "https://www.chess.com"]

[Event "Titled Tuesday Blitz February 21 Late 2023"]
[White "Smith, Garrett L"]
[Black "The_Sherman_Variation"]
[WhiteFideId "2024829"]
[WhiteElo "2047"]
[BlackElo "2501"]
[Result "0-1"]
[Round "08"]
[TimeControl "180+2"]
[Date "2023.02.21"]
[WhiteClock "0:00:11"]
[BlackClock "0:00:20"]

1. e4 {[%clk 0:03:00]}  b6 {[%clk 0:02:54]} 2. d4 {[%clk 0:02:57]}  Bb7 {[%clk 0:02:54]} 3. Bd3 {[%clk 0:02:57]}  e6 {[%clk 0:02:55]} 4. Qe2 {[%clk 0:02:56]}  Nc6 {[%clk 0:02:51]} 5. Nf3 {[%clk 0:02:52]}  h6 {[%clk 0:02:49]} 6. c3 {[%clk 0:02:49]}  Be7 {[%clk 0:02:47]} 7. Nbd2 {[%clk 0:02:46]}  d6 {[%clk 0:02:38]} 8. O-O {[%clk 0:02:33]}  Nf6 {[%clk 0:02:35]} 9. b4 {[%clk 0:02:14]}  a6 {[%clk 0:02:29]} 10. a4 {[%clk 0:02:13]}  O-O {[%clk 0:02:26]} 11. Bb2 {[%clk 0:02:06]}  e5 {[%clk 0:02:20]} 12. b5 {[%clk 0:01:58]}  axb5 {[%clk 0:02:17]} 13. axb5 {[%clk 0:01:59]}  Na5 {[%clk 0:02:02]} 14. dxe5 {[%clk 0:01:58]}  dxe5 {[%clk 0:02:01]} 15. Nxe5 {[%clk 0:01:57]}  Bd6 {[%clk 0:02:00]} 16. Nef3 {[%clk 0:01:47]}  Nh5 {[%clk 0:01:55]} 17. g3 {[%clk 0:01:43]}  Re8 {[%clk 0:01:52]} 18. c4 {[%clk 0:01:36]}  Bc5 {[%clk 0:01:44]} 19. Rad1 {[%clk 0:01:31]}  Qe7 {[%clk 0:01:41]} 20. Nd4 {[%clk 0:01:26]}  Qg5 {[%clk 0:01:25]} 21. f4 {[%clk 0:01:01]}  Qd8 {[%clk 0:01:16]} 22. Nf3 {[%clk 0:00:56]}  Nf6 {[%clk 0:01:11]} 23. Kg2 {[%clk 0:00:29]}  Nxe4 {[%clk 0:01:06]} 24. Qc2 {[%clk 0:00:26]}  Qd7 {[%clk 0:00:50]} 25. Ne5 {[%clk 0:00:24]}  Rxe5 {[%clk 0:00:45]} 26. fxe5 {[%clk 0:00:21]}  Ng5+ {[%clk 0:00:32]} 27. Nc6 {[%clk 0:00:20]}  Bxc6+ {[%clk 0:00:31]} 28. bxc6 {[%clk 0:00:20]}  Qxc6+ {[%clk 0:00:32]} 29. Be4 {[%clk 0:00:12]}  Nxe4 {[%clk 0:00:32]} 30. Rd5 {[%clk 0:00:11]}  Ng5 {[%clk 0:00:24]} 31. Qf5 {[%clk 0:00:11]}  Nxc4 {[%clk 0:00:20]} 0-1


[Site "https://www.chess.com"]

[Event "Titled Tuesday Blitz February 21 Late 2023"]
[White "Rottenwohrer Suarez, Juan"]
[Black "Prieto Aranguren, Alain"]
[WhiteFideId "32068182"]
[BlackFideId "2268906"]
[WhiteElo "2265"]
[BlackElo "2258"]
[Result "0-1"]
[Round "08"]
[TimeControl "180+2"]
[Date "2023.02.21"]
[WhiteClock "0:00:23"]
[BlackClock "0:01:17"]

1. Nf3 {[%clk 0:03:00]}  g6 {[%clk 0:02:58]} 2. g3 {[%clk 0:03:01]}  Bg7 {[%clk 0:02:57]} 3. Bg2 {[%clk 0:03:02]}  d6 {[%clk 0:02:58]} 4. O-O {[%clk 0:03:02]}  Nd7 {[%clk 0:02:57]} 5. d4 {[%clk 0:03:00]}  e5 {[%clk 0:02:55]} 6. dxe5 {[%clk 0:02:56]}  Nxe5 {[%clk 0:02:53]} 7. Nxe5 {[%clk 0:02:56]}  Bxe5 {[%clk 0:02:51]} 8. c4 {[%clk 0:02:52]}  Ne7 {[%clk 0:02:50]} 9. Nc3 {[%clk 0:02:48]}  O-O {[%clk 0:02:49]} 10. Bh6 {[%clk 0:02:47]}  Re8 {[%clk 0:02:48]} 11. Qd2 {[%clk 0:02:46]}  Be6 {[%clk 0:02:47]} 12. Bxb7 {[%clk 0:02:35]}  Rb8 {[%clk 0:02:43]} 13. Bd5 {[%clk 0:02:35]}  Nxd5 {[%clk 0:02:41]} 14. cxd5 {[%clk 0:02:33]}  Bh3 {[%clk 0:02:40]} 15. Rfe1 {[%clk 0:02:24]}  Qf6 {[%clk 0:02:25]} 16. Rac1 {[%clk 0:02:11]}  Rb4 {[%clk 0:02:15]} 17. b3 {[%clk 0:02:07]}  Rd4 {[%clk 0:02:09]} 18. Qg5 {[%clk 0:02:06]}  Qh8 {[%clk 0:01:50]} 19. Nb5 {[%clk 0:01:57]}  Bf6 {[%clk 0:01:36]} 20. Nxd4 {[%clk 0:00:25]}  Bxg5 {[%clk 0:01:35]} 21. Bxg5 {[%clk 0:00:26]}  Qxd4 {[%clk 0:01:31]} 22. Rxc7 {[%clk 0:00:23]}  Rxe2 {[%clk 0:01:17]} 0-1


[Site "https://www.chess.com"]

[Event "Titled Tuesday Blitz February 21 Late 2023"]
[White "Goncalves, Davi Sulzbacher"]
[Black "Toncheva, Nadya"]
[WhiteFideId "2154510"]
[BlackFideId "2924056"]
[WhiteElo "2282"]
[BlackElo "2295"]
[Result "1-0"]
[Round "08"]
[TimeControl "180+2"]
[Date "2023.02.21"]
[WhiteClock "0:00:12"]
[BlackClock "0:00:01"]

1. Nf3 {[%clk 0:02:55]}  c5 {[%clk 0:02:59]} 2. e4 {[%clk 0:02:55]}  Nc6 {[%clk 0:02:59]} 3. Bb5 {[%clk 0:02:51]}  Qb6 {[%clk 0:02:59]} 4. Nc3 {[%clk 0:02:50]}  e6 {[%clk 0:02:57]} 5. O-O {[%clk 0:02:50]}  a6 {[%clk 0:02:57]} 6. Bd3 {[%clk 0:02:46]}  Nf6 {[%clk 0:02:52]} 7. Re1 {[%clk 0:02:11]}  Be7 {[%clk 0:02:51]} 8. e5 {[%clk 0:02:07]}  Nd5 {[%clk 0:02:41]} 9. Nxd5 {[%clk 0:01:56]}  exd5 {[%clk 0:02:42]} 10. c3 {[%clk 0:01:57]}  O-O {[%clk 0:02:39]} 11. Bc2 {[%clk 0:01:57]}  d6 {[%clk 0:02:37]} 12. d4 {[%clk 0:01:56]}  dxe5 {[%clk 0:02:32]} 13. dxe5 {[%clk 0:01:55]}  Be6 {[%clk 0:02:21]} 14. Qd3 {[%clk 0:01:54]}  g6 {[%clk 0:02:20]} 15. Bg5 {[%clk 0:01:53]}  Bxg5 {[%clk 0:01:43]} 16. Nxg5 {[%clk 0:01:53]}  Bf5 {[%clk 0:01:43]} 17. Qd2 {[%clk 0:01:32]}  Qxb2 {[%clk 0:01:42]} 18. Rac1 {[%clk 0:01:26]}  d4 {[%clk 0:01:25]} 19. Ne4 {[%clk 0:00:47]}  Bxe4 {[%clk 0:00:37]} 20. Rxe4 {[%clk 0:00:48]}  d3 {[%clk 0:00:22]} 21. Qh6 {[%clk 0:00:27]}  dxc2 {[%clk 0:00:20]} 22. Rh4 {[%clk 0:00:28]}  Rfe8 {[%clk 0:00:18]} 23. Re1 {[%clk 0:00:17]}  Qxc3 {[%clk 0:00:15]} 24. Qxh7+ {[%clk 0:00:16]}  Kf8 {[%clk 0:00:15]} 25. Qh8+ {[%clk 0:00:16]}  Ke7 {[%clk 0:00:15]} 26. Qf6+ {[%clk 0:00:17]}  Kd7 {[%clk 0:00:09]} 27. e6+ {[%clk 0:00:16]}  Rxe6 {[%clk 0:00:10]} 28. Qxc3 {[%clk 0:00:16]}  Rae8 {[%clk 0:00:07]} 29. Rf1 {[%clk 0:00:13]}  Nd4 {[%clk 0:00:06]} 30. Rxd4+ {[%clk 0:00:12]}  cxd4 {[%clk 0:00:06]} 31. Qxc2 {[%clk 0:00:12]}  Rc6 {[%clk 0:00:05]} 32. Qa4 {[%clk 0:00:12]}  Re4 {[%clk 0:00:04]} 33. f3 {[%clk 0:00:12]}  Re2 {[%clk 0:00:03]} 34. Qxd4+ {[%clk 0:00:11]}  Kc8 {[%clk 0:00:03]} 35. Rd1 {[%clk 0:00:12]}  Kb8 {[%clk 0:00:03]} 36. Qd8+ {[%clk 0:00:12]}  Ka7 {[%clk 0:00:03]} 37. Qd4+ {[%clk 0:00:12]}  Kb8 {[%clk 0:00:03]} 38. Qf4+ {[%clk 0:00:10]}  Ka7 {[%clk 0:00:03]} 39. h4 {[%clk 0:00:10]}  Rcc2 {[%clk 0:00:02]} 40. Qd4+ {[%clk 0:00:10]}  Kb8 {[%clk 0:00:02]} 41. Qf4+ {[%clk 0:00:11]}  Ka7 {[%clk 0:00:03]} 42. Qg5 {[%clk 0:00:11]}  Rxa2 {[%clk 0:00:01]} 43. Rd8 {[%clk 0:00:11]}  Re1+ {[%clk 0:00:01]} 44. Kh2 {[%clk 0:00:11]}  Raa1 {[%clk 0:00:01]} 45. Qc5+ {[%clk 0:00:11]}  b6 {[%clk 0:00:01]} 46. Qc7# {[%clk 0:00:12]} 1-0


[Site "https://www.chess.com"]

[Event "Titled Tuesday Blitz February 21 Late 2023"]
[White "Li, Hui"]
[Black "Przybylski, Wojciech"]
[WhiteFideId "15400310"]
[BlackFideId "1117599"]
[WhiteElo "1963"]
[BlackElo "2321"]
[Result "1/2-1/2"]
[Round "08"]
[TimeControl "180+2"]
[Date "2023.02.21"]
[WhiteClock "0:00:23"]
[BlackClock "0:02:39"]

1. e4 {[%clk 0:01:30]}  c5 {[%clk 0:02:57]} 2. Nf3 {[%clk 0:01:29]}  e6 {[%clk 0:02:57]} 3. d4 {[%clk 0:01:29]}  cxd4 {[%clk 0:02:58]} 4. Nxd4 {[%clk 0:01:30]}  Nc6 {[%clk 0:02:59]} 5. Nc3 {[%clk 0:01:30]}  Qc7 {[%clk 0:02:59]} 6. Be2 {[%clk 0:01:29]}  a6 {[%clk 0:02:59]} 7. O-O {[%clk 0:01:29]}  Nf6 {[%clk 0:02:59]} 8. Be3 {[%clk 0:01:30]}  d6 {[%clk 0:03:00]} 9. a4 {[%clk 0:01:28]}  Be7 {[%clk 0:03:00]} 10. f4 {[%clk 0:01:28]}  O-O {[%clk 0:03:00]} 11. Qe1 {[%clk 0:01:23]}  Bd7 {[%clk 0:03:00]} 12. Qg3 {[%clk 0:01:21]}  Nxd4 {[%clk 0:03:00]} 13. Bxd4 {[%clk 0:01:21]}  Bc6 {[%clk 0:03:01]} 14. Kh1 {[%clk 0:01:13]}  Rad8 {[%clk 0:03:00]} 15. a5 {[%clk 0:01:08]}  Rd7 {[%clk 0:02:59]} 16. Bd3 {[%clk 0:01:08]}  g6 {[%clk 0:02:58]} 17. f5 {[%clk 0:01:03]}  e5 {[%clk 0:02:57]} 18. Be3 {[%clk 0:01:01]}  d5 {[%clk 0:02:57]} 19. exd5 {[%clk 0:00:49]}  Nxd5 {[%clk 0:02:55]} 20. Nxd5 {[%clk 0:00:47]}  Bxd5 {[%clk 0:02:55]} 21. fxg6 {[%clk 0:00:31]}  fxg6 {[%clk 0:02:49]} 22. Bxg6 {[%clk 0:00:23]}  hxg6 {[%clk 0:02:38]} 23. Qxg6+ {[%clk 0:00:22]}  Kh8 {[%clk 0:02:38]} 24. Qh6+ {[%clk 0:00:22]}  Kg8 {[%clk 0:02:39]} 25. Qg6+ {[%clk 0:00:22]}  Kh8 {[%clk 0:02:39]} 26. Qh6+ {[%clk 0:00:22]}  Kg8 {[%clk 0:02:39]} 27. Qg6+ {[%clk 0:00:23]} 1/2-1/2


[Site "https://www.chess.com"]

[Event "Titled Tuesday Blitz February 21 Late 2023"]
[White "Mikhalsky, Vladimir"]
[Black "Davidson, Kevin"]
[WhiteFideId "14144352"]
[BlackFideId "2056810"]
[WhiteElo "2219"]
[BlackElo "2154"]
[Result "1-0"]
[Round "08"]
[TimeControl "180+2"]
[Date "2023.02.21"]
[WhiteClock "0:00:16"]
[BlackClock "0:00:03"]

1. e4 {[%clk 0:03:00]}  c5 {[%clk 0:02:57]} 2. Nf3 {[%clk 0:02:58]}  d6 {[%clk 0:02:57]} 3. Bb5+ {[%clk 0:02:56]}  Nd7 {[%clk 0:02:56]} 4. O-O {[%clk 0:02:55]}  a6 {[%clk 0:02:48]} 5. Bc4 {[%clk 0:02:48]}  Ngf6 {[%clk 0:02:48]} 6. Re1 {[%clk 0:02:40]}  e6 {[%clk 0:02:47]} 7. a4 {[%clk 0:02:34]}  Be7 {[%clk 0:02:46]} 8. Nc3 {[%clk 0:02:34]}  O-O {[%clk 0:02:45]} 9. d4 {[%clk 0:02:34]}  cxd4 {[%clk 0:02:43]} 10. Nxd4 {[%clk 0:02:33]}  Qc7 {[%clk 0:02:23]} 11. Ba2 {[%clk 0:02:29]}  b6 {[%clk 0:02:10]} 12. f3 {[%clk 0:02:22]}  Bb7 {[%clk 0:02:09]} 13. Kh1 {[%clk 0:02:17]}  Rac8 {[%clk 0:02:06]} 14. Be3 {[%clk 0:02:13]}  Ne5 {[%clk 0:02:06]} 15. Bxe6 {[%clk 0:02:02]}  fxe6 {[%clk 0:02:01]} 16. Nxe6 {[%clk 0:02:03]}  Qc6 {[%clk 0:01:46]} 17. Nxf8 {[%clk 0:02:02]}  Bxf8 {[%clk 0:01:46]} 18. Bd4 {[%clk 0:01:33]}  Be7 {[%clk 0:01:33]} 19. Qe2 {[%clk 0:01:27]}  Ned7 {[%clk 0:00:57]} 20. Nd5 {[%clk 0:01:11]}  Bd8 {[%clk 0:00:48]} 21. Ne3 {[%clk 0:00:57]}  Nc5 {[%clk 0:00:36]} 22. b3 {[%clk 0:00:53]}  Ne6 {[%clk 0:00:34]} 23. Bb2 {[%clk 0:00:51]}  Nf4 {[%clk 0:00:34]} 24. Qd2 {[%clk 0:00:49]}  Qc5 {[%clk 0:00:23]} 25. c4 {[%clk 0:00:46]}  a5 {[%clk 0:00:13]} 26. Nd5 {[%clk 0:00:39]}  N4xd5 {[%clk 0:00:09]} 27. exd5 {[%clk 0:00:39]}  Qb4 {[%clk 0:00:07]} 28. Qxb4 {[%clk 0:00:23]}  axb4 {[%clk 0:00:07]} 29. Re6 {[%clk 0:00:23]}  Bc7 {[%clk 0:00:04]} 30. Rae1 {[%clk 0:00:17]}  Rf8 {[%clk 0:00:03]} 31. Re7 {[%clk 0:00:17]}  Rc8 {[%clk 0:00:03]} 32. g4 {[%clk 0:00:16]} 1-0


[Site "https://www.chess.com"]